[Event "Early-Titled-Tuesday-Blitz-April-23-2024"]
[Site "Chess.com"]
[Date "2024.04.23"]
[Round "10"]
[White "McCarthyStone"]
[Black "ZachHKL"]
[Result "1-0"]
[WhiteElo "2412"]
[BlackElo "2284"]
[TimeControl "180+1"]
[EndTime "9:58:44 PDT"]
[Termination "McCarthyStone won by resignation"]

1. e4 {[%clk 0:03:00.9]} 1... c5 {[%clk 0:02:59.4]} 2. Nf3 {[%clk 0:03:01.1]}
2... d6 {[%clk 0:02:59.7]} 3. d4 {[%clk 0:02:58]} 3... cxd4 {[%clk 0:03:00.6]}
4. Nxd4 {[%clk 0:02:58.9]} 4... Nf6 {[%clk 0:03:01.2]} 5. Nc3 {[%clk 0:02:59.2]}
5... g6 {[%clk 0:03:01.5]} 6. f4 {[%clk 0:02:57.7]} 6... Nc6 {[%clk 0:02:58]} 7.
Nb3 {[%clk 0:02:54.5]} 7... Bg7 {[%clk 0:02:57.4]} 8. Be2 {[%clk 0:02:54.9]}
8... O-O {[%clk 0:02:57.5]} 9. O-O {[%clk 0:02:55.5]} 9... a6 {[%clk 0:02:49]}
10. Be3 {[%clk 0:02:55.4]} 10... b5 {[%clk 0:02:48.5]} 11. Bf3 {[%clk
0:02:55.9]} 11... Bb7 {[%clk 0:02:48.2]} 12. Qe2 {[%clk 0:02:53.6]} 12... Qc7
{[%clk 0:02:46.5]} 13. g4 {[%clk 0:02:48]} 13... Nd7 {[%clk 0:02:41.9]} 14. Rad1
{[%clk 0:02:38.7]} 14... Rfe8 {[%clk 0:02:40.1]} 15. Nd5 {[%clk 0:02:39.1]}
15... Qc8 {[%clk 0:02:38.6]} 16. c3 {[%clk 0:02:37.7]} 16... Rb8 {[%clk
0:02:22.6]} 17. g5 {[%clk 0:02:35.1]} 17... e6 {[%clk 0:02:10.9]} 18. Nb6 {[%clk
0:02:22.3]} 18... Nxb6 {[%clk 0:02:11.2]} 19. Bxb6 {[%clk 0:02:23.2]} 19... b4
{[%clk 0:02:00]} 20. Rxd6 {[%clk 0:02:07.9]} 20... Ba8 {[%clk 0:01:48.9]} 21.
Bf2 {[%clk 0:02:00.9]} 21... bxc3 {[%clk 0:01:38.1]} 22. bxc3 {[%clk 0:02:01.8]}
22... Qc7 {[%clk 0:01:36.4]} 23. Rfd1 {[%clk 0:01:56.6]} 23... Red8 {[%clk
0:01:27.5]} 24. e5 {[%clk 0:01:51.8]} 24... Bf8 {[%clk 0:01:25.4]} 25. Rxd8
{[%clk 0:01:47.4]} 25... Nxd8 {[%clk 0:01:26]} 26. Bxa8 {[%clk 0:01:42.3]} 26...
Rxa8 {[%clk 0:01:26.9]} 27. Qd3 {[%clk 0:01:35.1]} 27... Nc6 {[%clk 0:01:17.8]}
28. Qd7 {[%clk 0:01:29.9]} 28... Rc8 {[%clk 0:01:09.8]} 29. Kg2 {[%clk
0:01:21.5]} 29... Ne7 {[%clk 0:01:06.6]} 30. Qxc7 {[%clk 0:01:16.5]} 30... Rxc7
{[%clk 0:01:07.5]} 31. Rd8 {[%clk 0:01:16.6]} 31... Nd5 {[%clk 0:01:04.1]} 32.
Bc5 {[%clk 0:01:12.8]} 32... Ne7 {[%clk 0:01:03.5]} 33. Bd6 {[%clk 0:01:10.7]}
33... Rb7 {[%clk 0:01:01.8]} 34. Nc5 {[%clk 0:01:11.2]} 34... Ra7 {[%clk
0:01:01.3]} 35. Nd7 {[%clk 0:01:09.8]} 1-0

[Event "Early-Titled-Tuesday-Blitz-April-23-2024"]
[Site "Chess.com"]
[Date "2024.04.23"]
[Round "10"]
[White "HansOnTwitch"]
[Black "KuzubovYuriy"]
[Result "1-0"]
[WhiteElo "3225"]
[BlackElo "2931"]
[TimeControl "180+1"]
[EndTime "9:58:45 PDT"]
[Termination "HansOnTwitch won by resignation"]

1. e4 {[%clk 0:03:00.9]} 1... e5 {[%clk 0:03:00]} 2. Nf3 {[%clk 0:03:01.1]} 2...
Nf6 {[%clk 0:03:00.5]} 3. Nxe5 {[%clk 0:03:00.9]} 3... d6 {[%clk 0:03:01]} 4.
Nc4 {[%clk 0:03:01.6]} 4... Nxe4 {[%clk 0:03:00.7]} 5. Qe2 {[%clk 0:03:02.3]}
5... Qe7 {[%clk 0:03:00.6]} 6. Nc3 {[%clk 0:03:03]} 6... Nxc3 {[%clk 0:02:58.7]}
7. bxc3 {[%clk 0:03:03.9]} 7... Nc6 {[%clk 0:02:56.1]} 8. d4 {[%clk 0:03:01.8]}
8... Qxe2+ {[%clk 0:02:51.6]} 9. Bxe2 {[%clk 0:03:01.9]} 9... Be6 {[%clk
0:02:46.2]} 10. Ne3 {[%clk 0:02:58.7]} 10... Na5 {[%clk 0:02:40.3]} 11. c4
{[%clk 0:02:52.6]} 11... b6 {[%clk 0:02:35.9]} 12. Bd2 {[%clk 0:02:50.9]} 12...
Nb7 {[%clk 0:02:35]} 13. Bf3 {[%clk 0:02:45]} 13... Rb8 {[%clk 0:02:19.2]} 14.
O-O {[%clk 0:02:40]} 14... Be7 {[%clk 0:02:17.1]} 15. Rfe1 {[%clk 0:02:17.9]}
15... Bf6 {[%clk 0:01:53]} 16. Bc6+ {[%clk 0:02:08.9]} 16... Kd8 {[%clk
0:01:51.2]} 17. Bc3 {[%clk 0:02:06.2]} 17... g6 {[%clk 0:01:43.4]} 18. Nd5
{[%clk 0:01:47.5]} 18... Bg7 {[%clk 0:01:40.1]} 19. Re2 {[%clk 0:01:47.4]} 19...
Na5 {[%clk 0:01:20.3]} 20. Bxa5 {[%clk 0:01:47.2]} 20... bxa5 {[%clk 0:01:19.4]}
21. c3 {[%clk 0:01:47.7]} 21... Bf8 {[%clk 0:00:40.3]} 22. Rae1 {[%clk
0:01:45.5]} 22... Bh6 {[%clk 0:00:30.3]} 23. h4 {[%clk 0:01:42.4]} 23... g5
{[%clk 0:00:26]} 24. Rxe6 {[%clk 0:01:39.9]} 24... fxe6 {[%clk 0:00:23.9]} 25.
Rxe6 {[%clk 0:01:40.8]} 25... Bg7 {[%clk 0:00:20.2]} 26. Re7 {[%clk 0:01:40.3]}
26... Bh6 {[%clk 0:00:16.8]} 27. Rd7+ {[%clk 0:01:40.3]} 27... Ke8 {[%clk
0:00:16.3]} 28. Nf6+ {[%clk 0:01:40.5]} 28... Kf8 {[%clk 0:00:16]} 29. Bd5
{[%clk 0:01:41.4]} 1-0

[Event "Early-Titled-Tuesday-Blitz-April-23-2024"]
[Site "Chess.com"]
[Date "2024.04.23"]
[Round "10"]
[White "Heinza9"]
[Black "zverr1"]
[Result "1-0"]
[WhiteElo "2342"]
[BlackElo "2465"]
[TimeControl "180+1"]
[EndTime "9:58:52 PDT"]
[Termination "Heinza9 won on time"]

1. e4 {[%clk 0:03:00.9]} 1... d5 {[%clk 0:02:59.2]} 2. exd5 {[%clk 0:03:00.5]}
2... Qxd5 {[%clk 0:03:00.1]} 3. c4 {[%clk 0:03:00.2]} 3... Qd8 {[%clk
0:02:56.9]} 4. d4 {[%clk 0:03:00]} 4... Nf6 {[%clk 0:02:54.6]} 5. Nc3 {[%clk
0:03:00]} 5... g6 {[%clk 0:02:46.9]} 6. g3 {[%clk 0:02:56]} 6... Bg7 {[%clk
0:02:47.2]} 7. Bg2 {[%clk 0:02:56.2]} 7... O-O {[%clk 0:02:46.8]} 8. Nge2 {[%clk
0:02:56.3]} 8... c6 {[%clk 0:02:42.1]} 9. O-O {[%clk 0:02:55.4]} 9... Be6 {[%clk
0:02:30.2]} 10. b3 {[%clk 0:02:53.9]} 10... Nbd7 {[%clk 0:02:23.2]} 11. h3
{[%clk 0:02:49.9]} 11... a5 {[%clk 0:02:17.1]} 12. Nf4 {[%clk 0:02:49.6]} 12...
Bf5 {[%clk 0:02:03.3]} 13. g4 {[%clk 0:02:48.6]} 13... Be6 {[%clk 0:01:46.5]}
14. Nxe6 {[%clk 0:02:48.4]} 14... fxe6 {[%clk 0:01:47.4]} 15. f4 {[%clk
0:02:48.5]} 15... Rc8 {[%clk 0:01:35.5]} 16. Bb2 {[%clk 0:02:43.9]} 16... b5
{[%clk 0:01:32.2]} 17. Qe2 {[%clk 0:02:40.8]} 17... bxc4 {[%clk 0:01:25.9]} 18.
Qxe6+ {[%clk 0:02:38.6]} 18... Kh8 {[%clk 0:01:26.1]} 19. bxc4 {[%clk
0:02:33.4]} 19... Qb6 {[%clk 0:01:19.3]} 20. Rf2 {[%clk 0:02:16.1]} 20... Qxd4
{[%clk 0:00:33.2]} 21. Na4 {[%clk 0:01:55.5]} 21... Qa7 {[%clk 0:00:24.6]} 22.
Rd1 {[%clk 0:01:50.3]} 22... Nb6 {[%clk 0:00:03.8]} 23. Bd4 {[%clk 0:01:38.4]}
23... c5 {[%clk 0:00:01.4]} 24. Nxb6 {[%clk 0:01:32]} 1-0

[Event "Early-Titled-Tuesday-Blitz-April-23-2024"]
[Site "Chess.com"]
[Date "2024.04.23"]
[Round "10"]
[White "Baku_Boulevard"]
[Black "Matibar"]
[Result "1-0"]
[WhiteElo "3041"]
[BlackElo "2860"]
[TimeControl "180+1"]
[EndTime "9:58:53 PDT"]
[Termination "Baku_Boulevard won by resignation"]

1. e4 {[%clk 0:03:00.9]} 1... e5 {[%clk 0:02:57.7]} 2. Nf3 {[%clk 0:03:00.5]}
2... Nc6 {[%clk 0:02:58]} 3. Bc4 {[%clk 0:02:59.4]} 3... Nf6 {[%clk 0:02:58.3]}
4. d3 {[%clk 0:02:56.8]} 4... Be7 {[%clk 0:02:57.2]} 5. Nc3 {[%clk 0:02:55.7]}
5... d6 {[%clk 0:02:52.6]} 6. O-O {[%clk 0:02:55.5]} 6... Na5 {[%clk 0:02:52.3]}
7. Bb3 {[%clk 0:02:52.6]} 7... h6 {[%clk 0:02:49.2]} 8. Re1 {[%clk 0:02:51.1]}
8... O-O {[%clk 0:02:48]} 9. d4 {[%clk 0:02:51.7]} 9... Nxb3 {[%clk 0:02:46.8]}
10. axb3 {[%clk 0:02:51.4]} 10... exd4 {[%clk 0:02:45.1]} 11. Nxd4 {[%clk
0:02:51.6]} 11... Re8 {[%clk 0:02:41]} 12. h3 {[%clk 0:02:51.2]} 12... Bf8
{[%clk 0:02:40.9]} 13. Bf4 {[%clk 0:02:51.1]} 13... c6 {[%clk 0:02:37.6]} 14.
Qd3 {[%clk 0:02:50.5]} 14... Be6 {[%clk 0:02:26.4]} 15. Qf3 {[%clk 0:02:46.4]}
15... Nd7 {[%clk 0:02:21]} 16. Qg3 {[%clk 0:02:45]} 16... Qf6 {[%clk 0:02:09.7]}
17. Rad1 {[%clk 0:02:33.6]} 17... Ne5 {[%clk 0:02:01.7]} 18. Bc1 {[%clk
0:02:31.5]} 18... Ng6 {[%clk 0:01:46.8]} 19. f4 {[%clk 0:02:28.1]} 19... Bd7
{[%clk 0:01:46.8]} 20. Nf3 {[%clk 0:02:20.4]} 20... d5 {[%clk 0:01:34.3]} 21. e5
{[%clk 0:01:48.3]} 21... Bc5+ {[%clk 0:01:33.3]} 22. Kh2 {[%clk 0:01:46.2]}
22... Qe7 {[%clk 0:01:31.9]} 23. Na4 {[%clk 0:01:45.7]} 23... b6 {[%clk
0:01:24.9]} 24. Nxc5 {[%clk 0:01:39.7]} 24... bxc5 {[%clk 0:01:24.7]} 25. e6
{[%clk 0:01:38.6]} 25... Bxe6 {[%clk 0:01:11.5]} 26. f5 {[%clk 0:01:37.7]} 26...
Qf6 {[%clk 0:01:11.7]} 27. fxe6 {[%clk 0:01:30.4]} 27... Rxe6 {[%clk 0:01:12.6]}
28. Rxe6 {[%clk 0:01:29]} 28... fxe6 {[%clk 0:01:11.2]} 29. Re1 {[%clk 0:01:28]}
29... Rf8 {[%clk 0:01:08.6]} 30. Be3 {[%clk 0:01:01.8]} 30... e5 {[%clk
0:01:02.3]} 31. Bxc5 {[%clk 0:01:00.1]} 31... Re8 {[%clk 0:01:00.9]} 32. Bd4
{[%clk 0:01:00.1]} 1-0

[Event "Early-Titled-Tuesday-Blitz-April-23-2024"]
[Site "Chess.com"]
[Date "2024.04.23"]
[Round "10"]
[White "LawrenceTrent"]
[Black "CristianS27"]
[Result "0-1"]
[WhiteElo "2708"]
[BlackElo "2584"]
[TimeControl "180+1"]
[EndTime "9:58:58 PDT"]
[Termination "CristianS27 won on time"]

1. d4 {[%clk 0:00:33.1]} 1... Nf6 {[%clk 0:02:58.9]} 2. Bg5 {[%clk 0:00:33.2]}
2... Ne4 {[%clk 0:02:58.8]} 3. Bf4 {[%clk 0:00:31.4]} 3... c5 {[%clk 0:02:59]}
4. f3 {[%clk 0:00:30.6]} 4... Qa5+ {[%clk 0:02:55.3]} 5. c3 {[%clk 0:00:28.9]}
5... Nf6 {[%clk 0:02:55.4]} 6. d5 {[%clk 0:00:28.9]} 6... e6 {[%clk 0:02:56]} 7.
e4 {[%clk 0:00:28.2]} 7... exd5 {[%clk 0:02:56.6]} 8. exd5 {[%clk 0:00:28.5]}
8... d6 {[%clk 0:02:54.8]} 9. Na3 {[%clk 0:00:28.7]} 9... Be7 {[%clk 0:02:53.4]}
10. Nc4 {[%clk 0:00:28.8]} 10... Qd8 {[%clk 0:02:53.4]} 11. a4 {[%clk
0:00:28.2]} 11... O-O {[%clk 0:02:53.7]} 12. Kf2 {[%clk 0:00:28.5]} 12... Nh5
{[%clk 0:02:49.7]} 13. Be3 {[%clk 0:00:27.9]} 13... f5 {[%clk 0:02:49.5]} 14. f4
{[%clk 0:00:28.2]} 14... Nf6 {[%clk 0:02:42.4]} 15. h3 {[%clk 0:00:27.8]} 15...
Ne4+ {[%clk 0:02:40.8]} 16. Kf3 {[%clk 0:00:28.1]} 16... Bh4 {[%clk 0:02:32.8]}
17. Ne2 {[%clk 0:00:16.3]} 17... Qe8 {[%clk 0:02:27.2]} 18. g3 {[%clk
0:00:16.1]} 18... Qh5+ {[%clk 0:02:00.8]} 19. Kg2 {[%clk 0:00:15.9]} 19... Qg6
{[%clk 0:02:01.7]} 20. Qe1 {[%clk 0:00:15.2]} 20... Nd7 {[%clk 0:01:50.8]} 21.
Kh2 {[%clk 0:00:10.7]} 21... Be7 {[%clk 0:01:51.3]} 22. Bg2 {[%clk 0:00:06.4]}
22... Ndf6 {[%clk 0:01:51.4]} 23. Rd1 {[%clk 0:00:04.7]} 23... b6 {[%clk
0:01:49.3]} 24. Bf3 {[%clk 0:00:02.4]} 24... Ba6 {[%clk 0:01:49.6]} 25. b3
{[%clk 0:00:02.5]} 25... b5 {[%clk 0:01:36]} 0-1

[Event "Early-Titled-Tuesday-Blitz-April-23-2024"]
[Site "Chess.com"]
[Date "2024.04.23"]
[Round "10"]
[White "N_I_Chess"]
[Black "ATM622"]
[Result "0-1"]
[WhiteElo "2376"]
[BlackElo "2506"]
[TimeControl "180+1"]
[EndTime "9:59:02 PDT"]
[Termination "ATM622 won on time"]

1. d4 {[%clk 0:03:00]} 1... Nf6 {[%clk 0:02:59.5]} 2. c4 {[%clk 0:02:59.3]} 2...
e6 {[%clk 0:02:59.9]} 3. Nc3 {[%clk 0:02:57.7]} 3... Bb4 {[%clk 0:02:59.3]} 4.
Nf3 {[%clk 0:02:52.6]} 4... O-O {[%clk 0:02:58.8]} 5. e3 {[%clk 0:02:40.6]} 5...
b6 {[%clk 0:02:57.2]} 6. Bd3 {[%clk 0:02:36.8]} 6... Bb7 {[%clk 0:02:56.8]} 7.
Bd2 {[%clk 0:02:36.9]} 7... d6 {[%clk 0:02:54.2]} 8. O-O {[%clk 0:02:36.4]} 8...
Nbd7 {[%clk 0:02:54.1]} 9. a3 {[%clk 0:02:12.3]} 9... Bxc3 {[%clk 0:02:52]} 10.
Bxc3 {[%clk 0:02:13.2]} 10... Ne4 {[%clk 0:02:51.3]} 11. Qc2 {[%clk 0:02:05.3]}
11... Ndf6 {[%clk 0:02:50.4]} 12. Be1 {[%clk 0:01:54.7]} 12... c5 {[%clk
0:02:47.1]} 13. Nd2 {[%clk 0:01:47.5]} 13... d5 {[%clk 0:02:42.9]} 14. Bxe4
{[%clk 0:01:12.7]} 14... Nxe4 {[%clk 0:02:42.2]} 15. Nxe4 {[%clk 0:01:11.9]}
15... dxe4 {[%clk 0:02:42]} 16. dxc5 {[%clk 0:01:12.5]} 16... bxc5 {[%clk
0:02:41.1]} 17. Bc3 {[%clk 0:01:03.3]} 17... Qd3 {[%clk 0:02:40.7]} 18. Rac1
{[%clk 0:00:46.1]} 18... Qxc4 {[%clk 0:02:38.9]} 19. Rfd1 {[%clk 0:00:39.3]}
19... Rfd8 {[%clk 0:02:36.3]} 20. h3 {[%clk 0:00:36.5]} 20... Rd3 {[%clk
0:02:34.8]} 21. b3 {[%clk 0:00:32.4]} 21... Qd5 {[%clk 0:02:32.7]} 22. b4 {[%clk
0:00:24.4]} 22... c4 {[%clk 0:02:32.8]} 23. Bd4 {[%clk 0:00:16.8]} 23... Rc8
{[%clk 0:02:30.8]} 24. Bxa7 {[%clk 0:00:12.1]} 24... c3 {[%clk 0:02:27.7]} 25.
Bd4 {[%clk 0:00:11.2]} 25... e5 {[%clk 0:02:25.8]} 26. Bc5 {[%clk 0:00:10.7]}
26... Bc6 {[%clk 0:02:22.6]} 27. Qe2 {[%clk 0:00:07.1]} 27... Ba4 {[%clk
0:02:19.6]} 28. Re1 {[%clk 0:00:05.7]} 28... Rd2 {[%clk 0:02:14.5]} 29. Qg4
{[%clk 0:00:05.5]} 29... Bd7 {[%clk 0:02:12.3]} 30. Qg3 {[%clk 0:00:03.8]} 30...
c2 {[%clk 0:02:11.2]} 31. f3 {[%clk 0:00:02.4]} 31... Bc6 {[%clk 0:02:03.8]} 32.
fxe4 {[%clk 0:00:02.5]} 32... Qxe4 {[%clk 0:02:02.5]} 33. Rf1 {[%clk 0:00:02.5]}
33... Rxg2+ {[%clk 0:02:01.6]} 34. Kh1 {[%clk 0:00:01.3]} 34... Rxg3+ {[%clk
0:02:01]} 0-1

[Event "Early-Titled-Tuesday-Blitz-April-23-2024"]
[Site "Chess.com"]
[Date "2024.04.23"]
[Round "10"]
[White "ReadySkate"]
[Black "TanitoluwaAps116"]
[Result "1-0"]
[WhiteElo "2679"]
[BlackElo "2779"]
[TimeControl "180+1"]
[EndTime "9:59:06 PDT"]
[Termination "ReadySkate won on time"]

1. d4 {[%clk 0:03:00.9]} 1... Nf6 {[%clk 0:02:35.6]} 2. c4 {[%clk 0:03:00.9]}
2... e6 {[%clk 0:02:33.7]} 3. Nc3 {[%clk 0:03:01.2]} 3... Bb4 {[%clk 0:02:31.6]}
4. a3 {[%clk 0:03:00.9]} 4... Bxc3+ {[%clk 0:02:31]} 5. bxc3 {[%clk 0:03:01.8]}
5... Nc6 {[%clk 0:02:31.1]} 6. f3 {[%clk 0:03:02.4]} 6... b6 {[%clk 0:02:31.7]}
7. e4 {[%clk 0:03:02.6]} 7... d6 {[%clk 0:02:32.2]} 8. Bd3 {[%clk 0:03:02.5]}
8... Na5 {[%clk 0:02:30.4]} 9. Ne2 {[%clk 0:03:01.1]} 9... Ba6 {[%clk
0:02:26.3]} 10. Ng3 {[%clk 0:03:01.3]} 10... Qd7 {[%clk 0:02:26.1]} 11. Bg5
{[%clk 0:02:53.2]} 11... Ng8 {[%clk 0:02:17.1]} 12. Qe2 {[%clk 0:02:51.7]} 12...
Qa4 {[%clk 0:02:12.5]} 13. O-O {[%clk 0:02:42.7]} 13... Bxc4 {[%clk 0:02:11.1]}
14. f4 {[%clk 0:02:41.3]} 14... Bxd3 {[%clk 0:01:47.7]} 15. Qxd3 {[%clk
0:02:42.2]} 15... Qc4 {[%clk 0:01:47.6]} 16. Qf3 {[%clk 0:02:41.4]} 16... Nb3
{[%clk 0:01:33.1]} 17. f5 {[%clk 0:02:37.1]} 17... Nxa1 {[%clk 0:01:07]} 18.
fxe6 {[%clk 0:02:30.7]} 18... f6 {[%clk 0:01:05.8]} 19. e5 {[%clk 0:02:22.7]}
19... c6 {[%clk 0:00:21.5]} 20. exf6 {[%clk 0:02:17.7]} 20... Nxf6 {[%clk
0:00:18.6]} 21. Bxf6 {[%clk 0:02:10.6]} 21... O-O {[%clk 0:00:18.5]} 22. Qg4
{[%clk 0:02:08.1]} 22... g6 {[%clk 0:00:11.4]} 23. e7 {[%clk 0:02:01.1]} 23...
Rf7 {[%clk 0:00:11.5]} 24. Qd7 {[%clk 0:01:58.9]} 24... Nb3 {[%clk 0:00:02.2]}
25. e8=Q+ {[%clk 0:01:51.9]} 25... Rxe8 {[%clk 0:00:02.4]} 26. Qxe8+ {[%clk
0:01:52.8]} 26... Rf8 {[%clk 0:00:03.2]} 27. Qd7 {[%clk 0:01:51]} 27... Qf7
{[%clk 0:00:03.3]} 28. Qxd6 {[%clk 0:01:49.9]} 28... Nd2 {[%clk 0:00:03.1]} 29.
Rf2 {[%clk 0:01:49.1]} 29... Nc4 {[%clk 0:00:02.1]} 30. Qxc6 {[%clk 0:01:48.7]}
30... Ne3 {[%clk 0:00:01.7]} 31. Ne4 {[%clk 0:01:48.2]} 31... Ng4 {[%clk
0:00:01.6]} 32. Ng5 {[%clk 0:01:46.2]} 32... Qa2 {[%clk 0:00:00.9]} 33. Rxa2
{[%clk 0:01:43.8]} 1-0

[Event "Early-Titled-Tuesday-Blitz-April-23-2024"]
[Site "Chess.com"]
[Date "2024.04.23"]
[Round "10"]
[White "dianamirza"]
[Black "esrosenberg"]
[Result "1-0"]
[WhiteElo "2019"]
[BlackElo "2303"]
[TimeControl "180+1"]
[EndTime "9:59:19 PDT"]
[Termination "dianamirza won by resignation"]

1. c4 {[%clk 0:02:26.8]} 1... e6 {[%clk 0:02:57.3]} 2. e4 {[%clk 0:02:07.1]}
2... d5 {[%clk 0:02:55.2]} 3. cxd5 {[%clk 0:02:04.6]} 3... exd5 {[%clk
0:02:56.1]} 4. e5 {[%clk 0:02:04.5]} 4... d4 {[%clk 0:02:48.3]} 5. Nf3 {[%clk
0:02:01.6]} 5... c5 {[%clk 0:02:42.7]} 6. Bc4 {[%clk 0:01:53.5]} 6... Nc6 {[%clk
0:02:26.1]} 7. O-O {[%clk 0:01:47.6]} 7... Qe7 {[%clk 0:02:17]} 8. d3 {[%clk
0:01:44.3]} 8... h6 {[%clk 0:02:15.9]} 9. Bf4 {[%clk 0:01:43.8]} 9... Be6 {[%clk
0:02:15]} 10. Bxe6 {[%clk 0:01:38.6]} 10... Qxe6 {[%clk 0:02:14.2]} 11. Nbd2
{[%clk 0:01:36.9]} 11... g5 {[%clk 0:02:08.3]} 12. Bg3 {[%clk 0:01:30.1]} 12...
O-O-O {[%clk 0:01:41.7]} 13. Ne4 {[%clk 0:01:23.1]} 13... Kb8 {[%clk 0:01:29.5]}
14. Rc1 {[%clk 0:01:22.3]} 14... b6 {[%clk 0:01:10]} 15. a3 {[%clk 0:01:08.4]}
15... Nge7 {[%clk 0:01:10]} 16. b4 {[%clk 0:01:07.7]} 16... cxb4 {[%clk
0:00:42.1]} 17. axb4 {[%clk 0:01:07.1]} 17... Nxb4 {[%clk 0:00:41.8]} 18. Nd6
{[%clk 0:01:02.8]} 18... Nec6 {[%clk 0:00:25.6]} 19. Qa4 {[%clk 0:00:57.9]}
19... Bxd6 {[%clk 0:00:23.2]} 20. exd6 {[%clk 0:00:57.7]} 20... Kb7 {[%clk
0:00:22.1]} 21. Nxd4 {[%clk 0:00:53.6]} 1-0

[Event "Early-Titled-Tuesday-Blitz-April-23-2024"]
[Site "Chess.com"]
[Date "2024.04.23"]
[Round "10"]
[White "ChainedDowntohell"]
[Black "AlexTruskavetsky"]
[Result "0-1"]
[WhiteElo "2566"]
[BlackElo "2692"]
[TimeControl "180+1"]
[EndTime "9:59:37 PDT"]
[Termination "AlexTruskavetsky won by resignation"]

1. d4 {[%clk 0:02:57.9]} 1... Nf6 {[%clk 0:02:58.7]} 2. c4 {[%clk 0:02:57.4]}
2... e6 {[%clk 0:02:58.7]} 3. Nc3 {[%clk 0:02:56.6]} 3... d5 {[%clk 0:02:58.2]}
4. cxd5 {[%clk 0:02:56]} 4... exd5 {[%clk 0:02:59.1]} 5. Bg5 {[%clk 0:02:56.4]}
5... c6 {[%clk 0:02:57.7]} 6. e3 {[%clk 0:02:56.6]} 6... Be7 {[%clk 0:02:57.5]}
7. Bd3 {[%clk 0:02:56.2]} 7... O-O {[%clk 0:02:57.5]} 8. Nf3 {[%clk 0:02:52.8]}
8... h6 {[%clk 0:02:57.1]} 9. Bf4 {[%clk 0:02:52.3]} 9... Bd6 {[%clk 0:02:55.3]}
10. Bxd6 {[%clk 0:02:41.4]} 10... Qxd6 {[%clk 0:02:56.2]} 11. h3 {[%clk
0:02:37.1]} 11... Nbd7 {[%clk 0:02:53.8]} 12. Qc2 {[%clk 0:02:33.5]} 12... Re8
{[%clk 0:02:52.2]} 13. O-O {[%clk 0:02:24.4]} 13... b6 {[%clk 0:02:51]} 14. Rfd1
{[%clk 0:02:17.8]} 14... Bb7 {[%clk 0:02:49.8]} 15. Rab1 {[%clk 0:02:17.5]}
15... Rac8 {[%clk 0:02:49.5]} 16. b4 {[%clk 0:02:16.9]} 16... Ba8 {[%clk
0:02:49.5]} 17. a4 {[%clk 0:02:11]} 17... c5 {[%clk 0:02:49.4]} 18. bxc5 {[%clk
0:01:56.1]} 18... bxc5 {[%clk 0:02:50.3]} 19. Nb5 {[%clk 0:01:55.7]} 19... Qb6
{[%clk 0:02:42.8]} 20. dxc5 {[%clk 0:01:50.8]} 20... Nxc5 {[%clk 0:02:43.7]} 21.
Bf5 {[%clk 0:01:49.2]} 21... Ne6 {[%clk 0:02:41.6]} 22. Qa2 {[%clk 0:01:40.1]}
22... a6 {[%clk 0:02:40.3]} 23. Nbd4 {[%clk 0:01:36.1]} 23... Qd6 {[%clk
0:02:40.3]} 24. a5 {[%clk 0:01:31.2]} 24... Rb8 {[%clk 0:02:38.6]} 25. Bd3
{[%clk 0:01:28.7]} 25... Nc5 {[%clk 0:02:36.8]} 26. Be2 {[%clk 0:01:26.6]} 26...
Nfe4 {[%clk 0:02:36.5]} 27. Qa3 {[%clk 0:01:14.8]} 27... Qf6 {[%clk 0:02:31.3]}
28. Rbc1 {[%clk 0:01:04.6]} 28... Rbc8 {[%clk 0:02:29.4]} 29. Rc2 {[%clk
0:00:56.3]} 29... Nxf2 {[%clk 0:02:02.6]} 30. Kxf2 {[%clk 0:00:49.9]} 30... Ne4+
{[%clk 0:02:02.7]} 31. Kg1 {[%clk 0:00:48.2]} 31... Rxc2 {[%clk 0:02:02.2]} 32.
Nxc2 {[%clk 0:00:47.5]} 32... Nc3 {[%clk 0:02:02.2]} 33. Rd2 {[%clk 0:00:40.2]}
33... Ne4 {[%clk 0:01:52.5]} 34. Rd4 {[%clk 0:00:34.4]} 34... Ng3 {[%clk
0:01:50.8]} 35. Qd3 {[%clk 0:00:28.5]} 35... Bb7 {[%clk 0:01:46.5]} 36. Qd2
{[%clk 0:00:27]} 36... Bc8 {[%clk 0:01:45.6]} 37. Bd3 {[%clk 0:00:22.7]} 37...
Bxh3 {[%clk 0:01:43.2]} 38. Rf4 {[%clk 0:00:20.6]} 38... Bf5 {[%clk 0:01:37.2]}
39. Bxf5 {[%clk 0:00:17.7]} 39... Nxf5 {[%clk 0:01:38.1]} 40. Nfd4 {[%clk
0:00:17.6]} 40... Re5 {[%clk 0:01:32.1]} 41. Qd3 {[%clk 0:00:15.7]} 41... g6
{[%clk 0:01:31]} 42. Qxa6 {[%clk 0:00:12.1]} 42... Qxa6 {[%clk 0:01:30.7]} 0-1

[Event "Early-Titled-Tuesday-Blitz-April-23-2024"]
[Site "Chess.com"]
[Date "2024.04.23"]
[Round "10"]
[White "Antosha_Chekhonte"]
[Black "IM_ArthurDW08"]
[Result "0-1"]
[WhiteElo "2566"]
[BlackElo "2735"]
[TimeControl "180+1"]
[EndTime "9:59:40 PDT"]
[Termination "IM_ArthurDW08 won on time"]

1. e4 {[%clk 0:03:00.9]} 1... g6 {[%clk 0:02:55.6]} 2. d4 {[%clk 0:03:00.5]}
2... Bg7 {[%clk 0:02:56.5]} 3. Nf3 {[%clk 0:02:59.6]} 3... d6 {[%clk 0:02:56.5]}
4. Bc4 {[%clk 0:02:59.7]} 4... Nf6 {[%clk 0:02:54.9]} 5. Qe2 {[%clk 0:02:59.9]}
5... Nc6 {[%clk 0:02:55.2]} 6. e5 {[%clk 0:02:55.6]} 6... Nh5 {[%clk 0:02:34]}
7. c3 {[%clk 0:02:43.1]} 7... O-O {[%clk 0:02:28.8]} 8. h3 {[%clk 0:02:41.7]}
8... d5 {[%clk 0:01:43.5]} 9. Bd3 {[%clk 0:02:40.5]} 9... f6 {[%clk 0:01:44.4]}
10. e6 {[%clk 0:01:43.7]} 10... Qd6 {[%clk 0:01:42.7]} 11. O-O {[%clk
0:01:39.4]} 11... Nf4 {[%clk 0:01:39.3]} 12. Bxf4 {[%clk 0:01:34.6]} 12... Qxf4
{[%clk 0:01:40.2]} 13. Re1 {[%clk 0:01:27.5]} 13... Nd8 {[%clk 0:01:36.4]} 14.
c4 {[%clk 0:01:25.1]} 14... Bxe6 {[%clk 0:01:34]} 15. Nc3 {[%clk 0:00:45]} 15...
c6 {[%clk 0:01:32.2]} 16. cxd5 {[%clk 0:00:39.5]} 16... cxd5 {[%clk 0:01:33.1]}
17. Qc2 {[%clk 0:00:38.8]} 17... Qd6 {[%clk 0:01:20.9]} 18. Nb5 {[%clk
0:00:36.2]} 18... Qb6 {[%clk 0:01:20.3]} 19. Qc7 {[%clk 0:00:26.6]} 19... Rc8
{[%clk 0:01:11.7]} 20. Qxe7 {[%clk 0:00:26.6]} 20... Rf7 {[%clk 0:01:05]} 21.
Qe8+ {[%clk 0:00:23.4]} 21... Bf8 {[%clk 0:00:57.6]} 22. Rac1 {[%clk 0:00:10.3]}
22... Rxc1 {[%clk 0:00:51.4]} 23. Rxc1 {[%clk 0:00:08.9]} 23... Re7 {[%clk
0:00:52.1]} 24. Nc7 {[%clk 0:00:02.2]} 24... Rxe8 {[%clk 0:00:51.6]} 25. Nxe8
{[%clk 0:00:03.1]} 25... Kf7 {[%clk 0:00:50.9]} 26. Nc7 {[%clk 0:00:01.8]} 26...
Nc6 {[%clk 0:00:51.1]} 0-1